[Event "Early-Titled-Tuesday-Blitz-May-14-2024"]
[Site "Chess.com"]
[Date "2024.05.14"]
[Round "10"]
[White "sokidze"]
[Black "karinachess1"]
[Result "1-0"]
[WhiteElo "2801"]
[BlackElo "2624"]
[TimeControl "180+1"]
[EndTime "9:59:36 PDT"]
[Termination "sokidze won on time"]

1. d4 {[%clk 0:03:00.9]} 1... Nf6 {[%clk 0:02:59.7]} 2. c4 {[%clk 0:03:01.1]}
2... e6 {[%clk 0:03:00]} 3. Nc3 {[%clk 0:03:01.6]} 3... d5 {[%clk 0:03:00.2]} 4.
cxd5 {[%clk 0:03:01.4]} 4... exd5 {[%clk 0:03:00.4]} 5. Bg5 {[%clk 0:03:01.8]}
5... c6 {[%clk 0:03:00.4]} 6. e3 {[%clk 0:03:02.3]} 6... Be7 {[%clk 0:03:00.9]}
7. Bd3 {[%clk 0:03:02.9]} 7... Nbd7 {[%clk 0:03:01.3]} 8. Nge2 {[%clk
0:03:02.4]} 8... h6 {[%clk 0:03:01.7]} 9. Bh4 {[%clk 0:03:01.6]} 9... Nh5 {[%clk
0:03:02]} 10. Bxe7 {[%clk 0:03:01.4]} 10... Qxe7 {[%clk 0:03:02.9]} 11. O-O
{[%clk 0:03:01.8]} 11... O-O {[%clk 0:03:02.7]} 12. Qc2 {[%clk 0:03:02.1]} 12...
Nb6 {[%clk 0:03:00.1]} 13. Rae1 {[%clk 0:03:01]} 13... Re8 {[%clk 0:02:59.6]}
14. Nc1 {[%clk 0:02:58.6]} 14... Qg5 {[%clk 0:02:50.5]} 15. Nb3 {[%clk 0:02:52]}
15... a5 {[%clk 0:02:27.5]} 16. a3 {[%clk 0:02:33.2]} 16... Nd7 {[%clk
0:01:44.5]} 17. Kh1 {[%clk 0:01:48.9]} 17... Ndf6 {[%clk 0:01:20.5]} 18. f3
{[%clk 0:01:48.6]} 18... Nd7 {[%clk 0:00:48.4]} 19. Qf2 {[%clk 0:01:25.5]} 19...
Qd8 {[%clk 0:00:45]} 20. e4 {[%clk 0:01:12.1]} 20... Nf4 {[%clk 0:00:44.8]} 21.
Bb1 {[%clk 0:01:11.5]} 21... Qb6 {[%clk 0:00:45]} 22. Nc5 {[%clk 0:00:52.9]}
22... Nxc5 {[%clk 0:00:38.6]} 23. dxc5 {[%clk 0:00:52.9]} 23... Qd8 {[%clk
0:00:39.3]} 24. Qd2 {[%clk 0:00:46.7]} 24... d4 {[%clk 0:00:26.3]} 25. Qxf4
{[%clk 0:00:40.8]} 25... dxc3 {[%clk 0:00:26.6]} 26. bxc3 {[%clk 0:00:40.6]}
26... Be6 {[%clk 0:00:26.3]} 27. Rd1 {[%clk 0:00:38.6]} 27... Qe7 {[%clk
0:00:26.5]} 28. Qd6 {[%clk 0:00:38.8]} 28... Qf6 {[%clk 0:00:25.7]} 29. e5
{[%clk 0:00:37]} 29... Qf4 {[%clk 0:00:23.4]} 30. Qd4 {[%clk 0:00:33.9]} 30...
Qxd4 {[%clk 0:00:20.1]} 31. Rxd4 {[%clk 0:00:33.5]} 31... Bd5 {[%clk 0:00:15.6]}
32. c4 {[%clk 0:00:32.1]} 32... Be6 {[%clk 0:00:15.7]} 33. f4 {[%clk 0:00:32.5]}
33... g6 {[%clk 0:00:14.6]} 34. Rfd1 {[%clk 0:00:28.3]} 34... Kg7 {[%clk
0:00:13.9]} 35. g3 {[%clk 0:00:19.1]} 35... a4 {[%clk 0:00:13.6]} 36. Bd3 {[%clk
0:00:12.4]} 36... Ra5 {[%clk 0:00:13.7]} 37. Rb1 {[%clk 0:00:12.9]} 37... Re7
{[%clk 0:00:13.3]} 38. Rb4 {[%clk 0:00:10.8]} 38... h5 {[%clk 0:00:09.1]} 39.
Kg2 {[%clk 0:00:09]} 39... Rxc5 {[%clk 0:00:09.5]} 40. Rxa4 {[%clk 0:00:09]}
40... b5 {[%clk 0:00:09.6]} 41. Rb4 {[%clk 0:00:06.9]} 41... bxc4 {[%clk
0:00:08.9]} 42. Bxc4 {[%clk 0:00:07.1]} 42... Ra7 {[%clk 0:00:07.9]} 43. Bxe6
{[%clk 0:00:06.6]} 43... fxe6 {[%clk 0:00:08.8]} 44. a4 {[%clk 0:00:06]} 44...
Rc2+ {[%clk 0:00:08]} 45. Kh3 {[%clk 0:00:06.6]} 45... c5 {[%clk 0:00:07.1]} 46.
Rdc4 {[%clk 0:00:02.2]} 46... cxb4 {[%clk 0:00:07.6]} 47. Rxc2 {[%clk
0:00:02.9]} 47... Rxa4 {[%clk 0:00:08]} 48. Rc7+ {[%clk 0:00:03.5]} 48... Kh6
{[%clk 0:00:06.4]} 49. Rb7 {[%clk 0:00:03.2]} 49... Ra6 {[%clk 0:00:02.4]} 50.
Kh4 {[%clk 0:00:02.2]} 50... Rc6 {[%clk 0:00:01.9]} 51. Rxb4 {[%clk 0:00:01.2]}
51... Rc2 {[%clk 0:00:01.9]} 52. h3 {[%clk 0:00:01.1]} 52... Rc7 {[%clk
0:00:02.1]} 53. Rb5 {[%clk 0:00:01.4]} 53... Kg7 {[%clk 0:00:02.1]} 54. Rb6
{[%clk 0:00:01.9]} 54... Kf7 {[%clk 0:00:02.2]} 55. g4 {[%clk 0:00:02.3]} 55...
hxg4 {[%clk 0:00:02.4]} 56. hxg4 {[%clk 0:00:03.2]} 56... Re7 {[%clk 0:00:02.6]}
57. Kg5 {[%clk 0:00:03.7]} 57... Kg7 {[%clk 0:00:02.2]} 58. Rb8 {[%clk 0:00:04]}
58... Kf7 {[%clk 0:00:02]} 59. Rh8 {[%clk 0:00:04.2]} 59... Kg7 {[%clk
0:00:02.5]} 60. Rh6 {[%clk 0:00:04.6]} 60... Re8 {[%clk 0:00:01.6]} 61. Rxg6+
{[%clk 0:00:05.2]} 61... Kf7 {[%clk 0:00:02.1]} 62. Rf6+ {[%clk 0:00:05.9]}
62... Kg7 {[%clk 0:00:02.3]} 63. Rh6 {[%clk 0:00:04.3]} 63... Re7 {[%clk
0:00:01.9]} 64. Rh2 {[%clk 0:00:03.1]} 64... Re8 {[%clk 0:00:02.4]} 65. Ra2
{[%clk 0:00:03]} 65... Re7 {[%clk 0:00:02.4]} 66. Ra8 {[%clk 0:00:03.3]} 66...
Kf7 {[%clk 0:00:02.9]} 67. Rb8 {[%clk 0:00:03.4]} 67... Kg7 {[%clk 0:00:03.4]}
68. Kh4 {[%clk 0:00:03.8]} 68... Kf7 {[%clk 0:00:03.6]} 69. Rb6 {[%clk
0:00:04.1]} 69... Kg7 {[%clk 0:00:03.7]} 70. Kg3 {[%clk 0:00:04.5]} 70... Kf7
{[%clk 0:00:04.1]} 71. Kf3 {[%clk 0:00:05.2]} 71... Ra7 {[%clk 0:00:04]} 72. Rb3
{[%clk 0:00:05.5]} 72... Rc7 {[%clk 0:00:03.4]} 73. Re3 {[%clk 0:00:05.4]} 73...
Ra7 {[%clk 0:00:03.6]} 74. Rd3 {[%clk 0:00:05.8]} 74... Rc7 {[%clk 0:00:03.6]}
75. Ke4 {[%clk 0:00:06.4]} 75... Rc4+ {[%clk 0:00:03.7]} 76. Rd4 {[%clk
0:00:06.9]} 76... Rc7 {[%clk 0:00:04.1]} 77. f5 {[%clk 0:00:07.2]} 77... Ra7
{[%clk 0:00:04.4]} 78. Kf4 {[%clk 0:00:06.7]} 78... Rb7 {[%clk 0:00:03.3]} 79.
Kg5 {[%clk 0:00:07]} 79... Ra7 {[%clk 0:00:03.5]} 80. Rd6 {[%clk 0:00:07.3]}
80... exf5 {[%clk 0:00:03.1]} 81. gxf5 {[%clk 0:00:08.2]} 81... Ra1 {[%clk
0:00:03]} 82. Rd7+ {[%clk 0:00:07.7]} 82... Ke8 {[%clk 0:00:03.6]} 83. e6 {[%clk
0:00:08.5]} 83... Ra8 {[%clk 0:00:02.4]} 84. Kf6 {[%clk 0:00:08.7]} 84... Ra1
{[%clk 0:00:01.8]} 85. Rh7 {[%clk 0:00:08.9]} 1-0

[Event "Early-Titled-Tuesday-Blitz-May-14-2024"]
[Site "Chess.com"]
[Date "2024.05.14"]
[Round "10"]
[White "Der_Balak_3Halak"]
[Black "stamatolog13"]
[Result "1-0"]
[WhiteElo "2409"]
[BlackElo "2550"]
[TimeControl "180+1"]
[EndTime "9:59:38 PDT"]
[Termination "Der_Balak_3Halak won on time"]

1. e4 {[%clk 0:03:00.9]} 1... e6 {[%clk 0:02:59.5]} 2. d4 {[%clk 0:02:59.8]}
2... d5 {[%clk 0:02:59.9]} 3. exd5 {[%clk 0:03:00.7]} 3... exd5 {[%clk
0:03:00.1]} 4. Bd3 {[%clk 0:03:01]} 4... c5 {[%clk 0:03:00.5]} 5. dxc5 {[%clk
0:03:00.2]} 5... Bxc5 {[%clk 0:03:00.4]} 6. Qe2+ {[%clk 0:02:59.1]} 6... Ne7
{[%clk 0:02:59]} 7. Nf3 {[%clk 0:02:59.4]} 7... O-O {[%clk 0:02:59.5]} 8. O-O
{[%clk 0:03:00]} 8... Nbc6 {[%clk 0:03:00.4]} 9. c3 {[%clk 0:02:58.3]} 9... Re8
{[%clk 0:02:57.7]} 10. Re1 {[%clk 0:02:35.1]} 10... Bf5 {[%clk 0:02:50.3]} 11.
Bg5 {[%clk 0:02:34.1]} 11... f6 {[%clk 0:02:49.1]} 12. Be3 {[%clk 0:02:27]}
12... Bxe3 {[%clk 0:02:45.4]} 13. Qxe3 {[%clk 0:02:24.5]} 13... Qd7 {[%clk
0:02:45.2]} 14. Nbd2 {[%clk 0:02:18.8]} 14... Bxd3 {[%clk 0:02:42.7]} 15. Qxd3
{[%clk 0:02:17.8]} 15... Ng6 {[%clk 0:02:41.3]} 16. c4 {[%clk 0:02:05.9]} 16...
Nf4 {[%clk 0:02:38.7]} 17. Qf1 {[%clk 0:01:57.4]} 17... d4 {[%clk 0:02:35.9]}
18. g3 {[%clk 0:01:53.2]} 18... Nh3+ {[%clk 0:02:30.6]} 19. Kg2 {[%clk
0:01:52.9]} 19... Ng5 {[%clk 0:02:23.9]} 20. Qd3 {[%clk 0:01:46.7]} 20... Ne5
{[%clk 0:02:17.1]} 21. Qxd4 {[%clk 0:01:31.8]} 21... Qxd4 {[%clk 0:01:47.9]} 22.
Nxd4 {[%clk 0:01:32.7]} 22... Rad8 {[%clk 0:01:48.3]} 23. N2f3 {[%clk
0:01:14.4]} 23... Ngxf3 {[%clk 0:01:45.8]} 24. Nxf3 {[%clk 0:01:15.3]} 24...
Nxc4 {[%clk 0:01:46.5]} 25. b3 {[%clk 0:01:13.9]} 25... Nb6 {[%clk 0:01:39.8]}
26. Rxe8+ {[%clk 0:01:05.1]} 26... Rxe8 {[%clk 0:01:39.8]} 27. Re1 {[%clk
0:01:04.4]} 27... Rxe1 {[%clk 0:01:39.1]} 28. Nxe1 {[%clk 0:01:05.3]} 28... Kf7
{[%clk 0:01:40]} 29. Kf3 {[%clk 0:01:04.8]} 29... Ke6 {[%clk 0:01:40.9]} 30. Ke4
{[%clk 0:01:03.2]} 30... Nd5 {[%clk 0:01:41.2]} 31. Kd4 {[%clk 0:01:01.7]} 31...
b6 {[%clk 0:01:40.1]} 32. Nd3 {[%clk 0:00:59.8]} 32... g5 {[%clk 0:01:38.4]} 33.
f4 {[%clk 0:00:57]} 33... g4 {[%clk 0:01:31.7]} 34. Nf2 {[%clk 0:00:53]} 34...
h5 {[%clk 0:01:24.4]} 35. Nd1 {[%clk 0:00:49.8]} 35... Ne7 {[%clk 0:01:20.8]}
36. Ne3 {[%clk 0:00:48.7]} 36... Kd6 {[%clk 0:01:11.7]} 37. a4 {[%clk
0:00:44.2]} 37... Ke6 {[%clk 0:01:09]} 38. b4 {[%clk 0:00:40.7]} 38... a5 {[%clk
0:01:02.7]} 39. b5 {[%clk 0:00:37.8]} 39... Nc8 {[%clk 0:00:44.7]} 40. f5+
{[%clk 0:00:37.2]} 40... Kf7 {[%clk 0:00:36.3]} 41. Nd5 {[%clk 0:00:37.1]} 41...
Nd6 {[%clk 0:00:35.1]} 42. Nxb6 {[%clk 0:00:36.9]} 42... Nxf5+ {[%clk
0:00:35.4]} 43. Ke4 {[%clk 0:00:35.9]} 43... Nd6+ {[%clk 0:00:30.6]} 44. Kd5
{[%clk 0:00:36.4]} 44... Nf5 {[%clk 0:00:31]} 45. Nc4 {[%clk 0:00:37.1]} 45...
Ke7 {[%clk 0:00:29.2]} 46. Kc6 {[%clk 0:00:33.3]} 46... Nd4+ {[%clk 0:00:21.2]}
47. Kc7 {[%clk 0:00:33.4]} 47... Ne6+ {[%clk 0:00:17.1]} 48. Kc8 {[%clk
0:00:33.6]} 48... Nc5 {[%clk 0:00:14.8]} 49. b6 {[%clk 0:00:33.5]} 49... f5
{[%clk 0:00:14.9]} 50. b7 {[%clk 0:00:33.4]} 50... Nxb7 {[%clk 0:00:14]} 51.
Kxb7 {[%clk 0:00:34.3]} 51... Ke6 {[%clk 0:00:11]} 52. Kc6 {[%clk 0:00:34]}
52... f4 {[%clk 0:00:11.4]} 53. gxf4 {[%clk 0:00:34.3]} 53... Kf5 {[%clk
0:00:11.8]} 54. Nxa5 {[%clk 0:00:30.3]} 54... h4 {[%clk 0:00:11.7]} 55. Nc4
{[%clk 0:00:29.9]} 55... Kxf4 {[%clk 0:00:11.5]} 56. Nb2 {[%clk 0:00:16.2]}
56... Ke3 {[%clk 0:00:11.5]} 57. Nd1+ {[%clk 0:00:14.4]} 57... Ke2 {[%clk
0:00:11.5]} 58. Nc3+ {[%clk 0:00:14.7]} 58... Kf3 {[%clk 0:00:11.3]} 59. a5
{[%clk 0:00:10.1]} 59... g3 {[%clk 0:00:11.7]} 60. hxg3 {[%clk 0:00:11]} 60...
h3 {[%clk 0:00:10.9]} 61. a6 {[%clk 0:00:11.1]} 61... h2 {[%clk 0:00:10.6]} 62.
a7 {[%clk 0:00:12]} 62... h1=Q {[%clk 0:00:10.1]} 63. a8=Q {[%clk 0:00:10.8]}
63... Kxg3+ {[%clk 0:00:10.5]} 64. Nd5 {[%clk 0:00:11.1]} 64... Qc1+ {[%clk
0:00:10.9]} 65. Kd6 {[%clk 0:00:11.6]} 65... Qh6+ {[%clk 0:00:10.1]} 66. Kd7
{[%clk 0:00:09.3]} 66... Qg7+ {[%clk 0:00:09.9]} 67. Ne7 {[%clk 0:00:09.7]}
67... Qd4+ {[%clk 0:00:09.8]} 68. Ke6 {[%clk 0:00:09.9]} 68... Qc4+ {[%clk
0:00:07.8]} 69. Nd5 {[%clk 0:00:09.5]} 69... Qe4+ {[%clk 0:00:07.2]} 70. Kd6
{[%clk 0:00:09.7]} 70... Qg6+ {[%clk 0:00:06.9]} 71. Kc5 {[%clk 0:00:09.6]}
71... Qc2+ {[%clk 0:00:07]} 72. Kd4 {[%clk 0:00:10.3]} 72... Qd2+ {[%clk
0:00:06.9]} 73. Ke4 {[%clk 0:00:10.8]} 73... Qe1+ {[%clk 0:00:03.6]} 74. Kf5
{[%clk 0:00:08.2]} 74... Qf2+ {[%clk 0:00:02.1]} 75. Ke6 {[%clk 0:00:08.2]} 1-0

[Event "Early-Titled-Tuesday-Blitz-May-14-2024"]
[Site "Chess.com"]
[Date "2024.05.14"]
[Round "10"]
[White "Antosha_Chekhonte"]
[Black "vasblesk"]
[Result "1/2-1/2"]
[WhiteElo "2610"]
[BlackElo "2798"]
[TimeControl "180+1"]
[EndTime "9:59:41 PDT"]
[Termination "Game drawn by repetition"]

1. e4 {[%clk 0:03:00.9]} 1... e5 {[%clk 0:02:58.6]} 2. Nf3 {[%clk 0:03:00.8]}
2... Nc6 {[%clk 0:02:58.1]} 3. Nc3 {[%clk 0:03:01.1]} 3... Nf6 {[%clk
0:02:56.8]} 4. d4 {[%clk 0:03:01.4]} 4... exd4 {[%clk 0:02:56.5]} 5. Nxd4 {[%clk
0:03:02.3]} 5... Bb4 {[%clk 0:02:56.9]} 6. Nxc6 {[%clk 0:03:02.4]} 6... bxc6
{[%clk 0:02:57.1]} 7. Bd3 {[%clk 0:03:03.1]} 7... d5 {[%clk 0:02:55.9]} 8. exd5
{[%clk 0:03:03.9]} 8... O-O {[%clk 0:02:56.6]} 9. O-O {[%clk 0:03:04.2]} 9...
cxd5 {[%clk 0:02:57]} 10. h3 {[%clk 0:03:03.7]} 10... c6 {[%clk 0:02:56.8]} 11.
Qf3 {[%clk 0:03:03.7]} 11... Rb8 {[%clk 0:02:54.9]} 12. Bf4 {[%clk 0:02:51.7]}
12... Bd6 {[%clk 0:02:54.6]} 13. b3 {[%clk 0:02:51.3]} 13... Rb4 {[%clk
0:02:54.4]} 14. Ne2 {[%clk 0:02:50.9]} 14... Bxf4 {[%clk 0:02:50.2]} 15. Nxf4
{[%clk 0:02:50.8]} 15... Qd6 {[%clk 0:02:50.8]} 16. c4 {[%clk 0:02:47.9]} 16...
d4 {[%clk 0:02:36]} 17. Rfe1 {[%clk 0:02:13.5]} 17... c5 {[%clk 0:02:29.4]} 18.
Qg3 {[%clk 0:02:09]} 18... h6 {[%clk 0:02:05.9]} 19. Nh5 {[%clk 0:02:03]} 19...
Qxg3 {[%clk 0:01:57]} 20. Nxf6+ {[%clk 0:02:02.8]} 20... gxf6 {[%clk 0:01:57.9]}
21. fxg3 {[%clk 0:02:03.4]} 21... Be6 {[%clk 0:01:56.5]} 22. Rf1 {[%clk
0:01:36.9]} 22... Kg7 {[%clk 0:01:50.4]} 23. Rf4 {[%clk 0:01:34.3]} 23... a5
{[%clk 0:01:49.2]} 24. Raf1 {[%clk 0:01:33.2]} 24... a4 {[%clk 0:01:48.2]} 25.
Bc2 {[%clk 0:01:22.6]} 25... axb3 {[%clk 0:01:45.6]} 26. axb3 {[%clk 0:01:18.4]}
26... d3 {[%clk 0:01:38.6]} 27. Bd1 {[%clk 0:00:51.7]} 27... f5 {[%clk
0:01:35.2]} 28. Kf2 {[%clk 0:00:49.9]} 28... Rd8 {[%clk 0:01:21.7]} 29. Ke3
{[%clk 0:00:50]} 29... Rb6 {[%clk 0:01:21.6]} 30. R1f2 {[%clk 0:00:39.7]} 30...
Rbd6 {[%clk 0:01:19.7]} 31. Rd2 {[%clk 0:00:36.3]} 31... Kf6 {[%clk 0:01:19]}
32. Rf1 {[%clk 0:00:23.6]} 32... Ke5 {[%clk 0:01:18.1]} 33. Bf3 {[%clk
0:00:20.5]} 33... Rd4 {[%clk 0:01:08.5]} 34. Rfd1 {[%clk 0:00:19.1]} 34... Rg8
{[%clk 0:01:07.5]} 35. Rxd3 {[%clk 0:00:17.9]} 35... Rxd3+ {[%clk 0:01:08.1]}
36. Rxd3 {[%clk 0:00:18.5]} 36... Rxg3 {[%clk 0:01:08.5]} 37. Rd8 {[%clk
0:00:14.9]} 37... f4+ {[%clk 0:01:07.7]} 38. Kf2 {[%clk 0:00:14.3]} 38... Rg6
{[%clk 0:01:07]} 39. Rb8 {[%clk 0:00:11.5]} 39... Kd4 {[%clk 0:01:06.1]} 40. Rb5
{[%clk 0:00:10.6]} 40... Rg5 {[%clk 0:01:04.4]} 41. h4 {[%clk 0:00:07.2]} 41...
Re5 {[%clk 0:01:04.3]} 42. Rb6 {[%clk 0:00:06.9]} 42... Re3 {[%clk 0:01:02.8]}
43. Rb8 {[%clk 0:00:06]} 43... Rc3 {[%clk 0:00:59.1]} 44. Rb6 {[%clk 0:00:04.9]}
44... Rc2+ {[%clk 0:00:58.4]} 45. Kg1 {[%clk 0:00:05]} 45... Rc1+ {[%clk
0:00:47.1]} 46. Kh2 {[%clk 0:00:04.9]} 46... Rc3 {[%clk 0:00:43.7]} 47. Rd6+
{[%clk 0:00:04.2]} 47... Ke5 {[%clk 0:00:43.5]} 48. Rc6 {[%clk 0:00:03.3]} 48...
Rxb3 {[%clk 0:00:38.1]} 49. Rxc5+ {[%clk 0:00:03.5]} 49... Kd4 {[%clk
0:00:38.9]} 50. Rh5 {[%clk 0:00:03.6]} 50... Bxc4 {[%clk 0:00:39.6]} 51. Rxh6
{[%clk 0:00:03.8]} 51... Ke5 {[%clk 0:00:39.8]} 52. Rh8 {[%clk 0:00:03.6]} 52...
Kf6 {[%clk 0:00:39.6]} 53. h5 {[%clk 0:00:04]} 53... Be6 {[%clk 0:00:38.9]} 54.
Rd8 {[%clk 0:00:04]} 54... Kg5 {[%clk 0:00:36.3]} 55. Rd4 {[%clk 0:00:04.1]}
55... Rb8 {[%clk 0:00:35.5]} 56. Re4 {[%clk 0:00:04.2]} 56... Rh8 {[%clk
0:00:31.1]} 57. Re5+ {[%clk 0:00:04.5]} 57... Kf6 {[%clk 0:00:30.9]} 58. Re4
{[%clk 0:00:04.7]} 58... Kf5 {[%clk 0:00:31.5]} 59. Rb4 {[%clk 0:00:04.4]} 59...
Kg5 {[%clk 0:00:29.7]} 60. Rb5+ {[%clk 0:00:04.6]} 60... Kf6 {[%clk 0:00:26.4]}
61. Rb4 {[%clk 0:00:05.5]} 61... Ke5 {[%clk 0:00:26.9]} 62. Rb5+ {[%clk
0:00:05.9]} 62... Kf6 {[%clk 0:00:25.5]} 63. Rb4 {[%clk 0:00:06.8]} 63... Kg5
{[%clk 0:00:22.3]} 64. Rb5+ {[%clk 0:00:07]} 64... f5 {[%clk 0:00:23]} 65. Rb6
{[%clk 0:00:06.7]} 65... Bf7 {[%clk 0:00:23.3]} 66. Rb7 {[%clk 0:00:06.6]} 66...
Bxh5 {[%clk 0:00:23.6]} 67. Bxh5 {[%clk 0:00:03.2]} 67... Kxh5 {[%clk
0:00:18.8]} 68. Kg1 {[%clk 0:00:04.1]} 68... Rc8 {[%clk 0:00:14.1]} 69. Rg7
{[%clk 0:00:04]} 69... Kh6 {[%clk 0:00:13.9]} 70. Rf7 {[%clk 0:00:02.3]} 70...
Kg6 {[%clk 0:00:14.4]} 71. Ra7 {[%clk 0:00:02.6]} 71... Rc2 {[%clk 0:00:14.8]}
72. Ra8 {[%clk 0:00:01.6]} 72... f3 {[%clk 0:00:10.4]} 73. Rg8+ {[%clk
0:00:01.6]} 73... Kf7 {[%clk 0:00:09.7]} 74. Rg3 {[%clk 0:00:02.1]} 74... fxg2
{[%clk 0:00:04.7]} 75. Rxg2 {[%clk 0:00:03]} 75... Rc1+ {[%clk 0:00:03.5]} 76.
Kh2 {[%clk 0:00:03.1]} 76... Kf6 {[%clk 0:00:04.1]} 77. Ra2 {[%clk 0:00:02.1]}
77... f4 {[%clk 0:00:02.7]} 78. Ra5 {[%clk 0:00:01.5]} 78... Re1 {[%clk
0:00:02.6]} 79. Kg2 {[%clk 0:00:01.9]} 79... Re3 {[%clk 0:00:03.4]} 80. Kf2
{[%clk 0:00:02]} 80... Re5 {[%clk 0:00:01.9]} 81. Rxe5 {[%clk 0:00:02]} 81...
Kxe5 {[%clk 0:00:02.8]} 82. Kf3 {[%clk 0:00:02.8]} 82... Kf5 {[%clk 0:00:03.7]}
83. Kf2 {[%clk 0:00:03.3]} 83... Ke4 {[%clk 0:00:04.6]} 84. Ke2 {[%clk
0:00:03.8]} 84... f3+ {[%clk 0:00:05.5]} 85. Kf2 {[%clk 0:00:04.4]} 85... Kf4
{[%clk 0:00:06.4]} 86. Kf1 {[%clk 0:00:04.9]} 86... Ke3 {[%clk 0:00:07.3]} 87.
Ke1 {[%clk 0:00:05.5]} 87... Ke4 {[%clk 0:00:08.2]} 88. Kf2 {[%clk 0:00:05.2]}
88... Kf4 {[%clk 0:00:09.1]} 89. Kf1 {[%clk 0:00:05.2]} 89... Kg3 {[%clk
0:00:10]} 90. Kg1 {[%clk 0:00:05.5]} 90... Kg4 {[%clk 0:00:10.9]} 91. Kf2 {[%clk
0:00:06]} 91... Kf4 {[%clk 0:00:11.8]} 1/2-1/2